Cogmind - Beta 17 @@@ ROGUE MODE // 2026.06.29 @ 22:50:59 Player: leiavoia Result: Destroyed by 3O-OYB(R) with Subdweller Laser Performance ------------- Evolutions (0) 0 Regions Visited (2) 400 Robots Destroyed (35) 175 Value Destroyed (979) 979 Prototype IDs (2) 40 Alien Tech Used (0) 0 Bonus (0) 0 TOTAL SCORE: 1594 Bonus ------- None Cogmind --------- Core Integrity 0/250 Matter 232/300 Energy 250/250 System Corruption 9% Temperature Cool (6) Movement Treading (560) Ox4 Location -10/Subcaves Parts ------- > --- POWER (1) -------- Ion Engine > --- PROPULSION (2) --- Spiked Treads Compact Wheel > --- UTILITY (2) ------ Improved Heat Sink Huge Storage Unit > --- WEAPON (2) ------- Battle Cannon > --- INVENTORY (25) --- Subdweller Power Source Light Treads Aluminum Leg Wheel Large Storage Unit Small Battery (100) Medium Matter Pod (100) Medium Matter Pod (100) Sensor Array Seismic Detector Tractor Beam Riot Gun Medium Laser Autogun Autogun Shotgun Shotgun Shotgun Battle Rifle Grenade Launcher Grenade Launcher Plasma Cutter Piercing Trap Peak State ------------ > --- POWER ------------ Ion Engine > --- PROPULSION ------- Spiked Treads Compact Wheel > --- UTILITY ---------- Improved Heat Sink Huge Storage Unit > --- WEAPON ----------- Shotgun Battle Cannon > --- INVENTORY -------- Subdweller Power Source Light Treads Aluminum Leg Wheel Large Storage Unit Small Battery Medium Matter Pod Medium Matter Pod Sensor Array Seismic Detector Tractor Beam Riot Gun Medium Laser Autogun Autogun Shotgun Shotgun Battle Rifle Grenade Launcher Grenade Launcher Plasma Cutter Flamer Piercing Trap [Rating: 15] Favorites ----------- Power Ion Engine Engine Ion Engine Propulsion Light Treads Treads Light Treads Leg Aluminum Leg Wheel Compact Wheel Utility Improved Heat Sink Device Improved Heat Sink Storage Huge Storage Unit Protection Core Shielding Weapon Shotgun Energy Gun Medium Laser Energy Cannon Subdweller Beam Cannon Ballistic Gun Shotgun Ballistic Cannon Battle Cannon Launcher Grenade Launcher Special Weapon Flamer Impact Weapon Hammer Slashing Weapon Mining Claw Build | -11 -10 -10 ------- Run | Yrd Mat Sub Slots Evolved . | . . . Power . | . . . Propulsion . | . . . Utility . | . . . Weapon . | . . . Parts Attached 36 | 8 17 11 Power 5 | 1 4 . Engine 5 | 1 4 . Core . | . . . Reactor . | . . . Propulsion 9 | 2 3 4 Treads 4 | 2 . 2 Leg 1 | . . 1 Wheel 4 | . 3 1 Hover . | . . . Flight . | . . . Utility 7 | 3 4 . Device 3 | 2 1 . Storage 3 | 1 2 . Processor . | . . . Hackware . | . . . Protection 1 | . 1 . Artifact . | . . . Weapon 15 | 2 6 7 Energy Gun 4 | 2 2 . Energy Cannon 1 | . . 1 Ballistic Gun 3 | . 2 1 Ballistic Cannon 1 | . . 1 Launcher 2 | . . 2 Special Weapon 2 | . 1 1 Impact Weapon 1 | . 1 . Slashing Weapon 1 | . . 1 Piercing Weapon . | . . . Special Melee Weapon . | . . . Unidentified Prototypes . | . . . Parts Lost 8 | . 2 6 Power 3 | . 1 2 Propulsion 1 | . . 1 Utility . | . . . Weapon 4 | . 1 3 Highest Loss Streak 3 | . 1 3 To Critical Strikes . | . . . Average Backups 20 | 2 19 23 Power 1 | . 1 1 Propulsion 2 | . 2 2 Utility 6 | . 6 7 Weapon 9 | . 8 11 Tool/Special . | . . . Unused Backups 12 | . . 12 Power 1 | . . 1 Propulsion 1 | . . 1 Utility 4 | . . 4 Weapon 6 | . . 6 Tool/Special . | . . . Average Slot Usage (%) 99 | . 99 97 Engine 13 | . 14 13 Treads 16 | . 18 14 Wheel 11 | . 9 13 Device 12 | . 11 14 Storage 14 | . 14 14 Protection 1 | . 2 . Energy Gun 9 | . 16 . Ballistic Gun 12 | . 11 13 Ballistic Cannon 1 | . . 3 Impact Weapon 2 | . . 6 Peak Build Rating 15 | 7 14 15 Average Rating 11 | 5 11 13 On Entrance 6 | . 7 13 Avg Prop Armor Cover (%) 12 | . 11 12 Naked Turns . | . . . Heaviest Build 96 | 15 92 96 Greatest Support 40 | 40 40 20 Greatest Overweight (x) 9 | 2 9 5 Average Overweight (x) 4 | . 4 4 Largest Inventory Capacity 25 | 8 25 25 Average Capacity 22 | 7 21 25 Most Carried 25 | 5 25 25 Average Carried 20 | 2 19 24 Final Capacity 25 | 8 25 25 Final Carried 25 | 5 25 23 Class Distribution -------------------- 100% | Mutant Dominant Class ---------------- Mutant | -10/Materials Mutant | -10/Subcaves Resources | -11 -10 -10 ----------- Run | Yrd Mat Sub Matter Collected 1250 | 270 619 361 Remotely 179 | 179 . . Salvage Created 1292 | 108 987 197 Parts 53 | 6 39 8 Haulers Intercepted 1 | . 1 . Recyclers Shooed 4 | . 4 . Parts Field Recycled . | . . . Retrieved Matter . | . . . Parts Self-Destructed 3 | . . 3 Prevented . | . . . Parts Restored . | . . . Kills | -11 -10 -10 ------- Run | Yrd Mat Sub Combat Hostiles Destroyed 24 | . 17 7 Guns 18 | . 16 2 AOE 4 | . . 4 Classes Destroyed 10 | 2 5 3 Worker 2 | . 2 . Tunneler 2 | 2 . . Hauler 1 | . 1 . Recycler 3 | 1 2 . Operator 1 | . 1 . Watcher 2 | . 2 . Swarmer 1 | . . 1 Grunt 17 | . 17 . Sentry 1 | . . 1 Subdweller 5 | . . 5 Best Kill Streak 4 | 2 4 3 Combat Bots Only 3 | . 2 3 Max Kills in Single Turn 1 | 1 1 1 Gunslinging . | . . . Exploded 1 | . . 1 Melee . | . . . Uniques/NPCs Destroyed . | . . . Combat | -11 -10 -10 -------- Run | Yrd Mat Sub Hostile Shots Fired 117 | . 80 37 Missed 36 | . 18 18 Hits 81 | . 62 19 Projectile 81 | . 62 19 Critical Strikes 1 | . 1 . Damage Taken 1522 | . 791 731 Core 259 | . 87 172 Absorbed by Shields . | . . . Regen/Repaired (Parts) 105 | . 105 . Core Remaining (%) 100 | 100 . . Volleys Fired 159 | 10 99 50 Largest 2 | 2 2 2 Hottest 133 | 100 100 133 Shots Fired 281 | 20 191 70 Gun 232 | 20 191 21 Cannon 38 | . . 38 Launcher 8 | . . 8 Special 3 | . . 3 Kinetic 108 | . 68 40 Thermal 165 | 20 123 22 Explosive 8 | . . 8 Electromagnetic . | . . . Robot Hit Streak 10 | 5 10 10 Robot Miss Streak 8 | 2 8 2 Penetration Max . | . . . Secondary Targets 1 | . 1 . Max Gunslinging Chain 1 | . 1 . Shots Hit Robots 163 | 13 123 27 Core Hits 71 | 4 53 14 Critical Kills . | . . . Critical Parts Destroyed 3 | . 2 1 Critical Strikes 9 | . 8 1 Burn 6 | . 6 . Destroy 2 | . 2 . Smash 1 | . . 1 Melee Attacks 49 | . 1 48 Impact 48 | . 1 47 Slashing 1 | . . 1 Piercing . | . . . Sneak Attacks . | . . . Combat Hostiles . | . . . Follow-up Attacks . | . . . Damage Inflicted 2541 | 168 1620 753 Guns 1983 | 163 1606 214 Cannons 63 | . . 63 Explosions 389 | . . 389 Melee 55 | . . 55 Ramming 19 | 5 14 . Kinetic 980 | . 703 277 Thermal 1098 | 163 903 32 Explosive 389 | . . 389 Electromagnetic . | . . . Impact 55 | . . 55 Slashing . | . . . Piercing . | . . . Highest Corruption 9 | . . 9 Average Corruption 9 | . . 9 Corruption Purged . | . . . Corruption Blocked . | . . . Effects 12 | . . 12 Message Errors 5 | . . 5 Heat Flow Errors 2 | . . 2 Data Loss (minor) 3 | . . 3 Misfires 2 | . . 2 Overload Shots . | . . . Overflow Damage 35 | . . 35 Projectiles . | . . . Explosions . | . . . Melee 35 | . . 35 Knockbacks 3 | . . 3 Impact 1 | . . 1 Kinetic 2 | . . 2 Secondary . | . . . Self-Inflicted Damage . | . . . Shots . | . . . Rammed 6 | 2 4 . Targets Rammed 6 | 2 4 . Kicked . | . . . Crushed . | . . . Highest Temperature 312 | 312 309 214 Average Temperature 103 | 153 93 109 Received Heat Transfer 519 | . 447 72 Effects 2 | . 2 . Energy Bleed 1 | . 1 . Interference 1 | . 1 . Siege Activations . | . . . Martial Activations . | . . . Shielding Activations . | . . . Robots Disrupted . | . . . Combat Hostiles . | . . . Robots Corrupted 1 | . . 1 Combat Hostiles 1 | . . 1 Parts Fried 1 | . . 1 Impact Corruptions 1 | . . 1 Robots Melted 1 | . 1 . Combat Hostiles 1 | . 1 . Parts Melted 11 | 1 10 . Heat Transferred 3818 | 481 3097 240 Parts Sabotaged . | . . . Parts Stolen . | . . . Parts Stripped . | . . . Power Chain Reactions . | . . . Alert | -11 -10 -10 ------- Run | Yrd Mat Sub Maximum Alert Level . | . . . Low Security (%) 100 | 100 100 . Level 1 . | . . . Level 2 . | . . . Level 3 . | . . . Level 4 . | . . . Level 5 . | . . . High Security . | . . . Max Security . | . . . Peak Influence 102 | 10 102 . Initial . | . . . Average 35 | 1 37 . Influence Increases 655 | 15 600 40 Destroy 0b10 Robot/C 380 | . 340 40 Destroy 0b10 Robot/NC 55 | 15 40 . Destroy Leader 76 | . 76 . Successful Hack 22 | . 22 . Disable Machine 15 | . 15 . Destroy Structure 2 | . 2 . Lose Combat Pursuer 105 | . 105 . Influence Decreases 655 | 15 515 125 Entered New Map 41 | . . 41 Time Decay 532 | 15 453 64 Lost Part 32 | . 12 20 Purge Threat 50 | . 50 . Squads Dispatched 3 | . 3 . Investigation 1 | . 1 . Extermination . | . . . Reinforcement 2 | . 2 . Assault . | . . . Garrison . | . . . Intercept . | . . . Searches Triggered . | . . . Construction Impeded . | . . . Haulers Reinforced . | . . . Active Scanning Responses . | . . . Cargo Convoy Interrupts . | . . . Stealth | -11 -10 -10 --------- Run | Yrd Mat Sub Distress Signals . | . . . Communications Jammed . | . . . Distress Signals . | . . . Times Spotted 39 | . 30 9 Peak Tracking Total 3 | . 3 2 Tactical Retreats 6 | . 6 . Traps | -11 -10 -10 ------- Run | Yrd Mat Sub Traps Triggered 2 | . 2 . Indirectly . | . . . Trap Hack Attempts . | . . . Triggered . | . . . Disarmed . | . . . Reprogrammed . | . . . Reused . | . . . Traps Extracted . | . . . Installed 1 | . . 1 Triggered . | . . . Most Traps Carried 1 | . . 1 Machines | -11 -10 -10 ---------- Run | Yrd Mat Sub Machines Disabled 1 | . 1 . Max in Single Turn 1 | . 1 . Machines Repaired . | . . . Machines Dismantled . | . . . Machines Sabotaged . | . . . Overloaded Fab Kills . | . . . Hacking | -11 -10 -10 --------- Run | Yrd Mat Sub Machines Accessed 9 | . 9 . Terminals 6 | . 6 . Fabricators . | . . . Repair Stations 1 | . 1 . Recycling Units 2 | . 2 . Scanalyzers . | . . . Garrison Access . | . . . Total Hacks 24 | . 24 . Successful 14 | . 14 . Failed 10 | . 10 . Catastrophic . | . . . Database Lockouts . | . . . Manual 5 | . 5 . Terminals 15 | . 15 . Fabricators . | . . . Repair Stations 5 | . 5 . Recycling Units 4 | . 4 . Scanalyzers . | . . . Garrison Access . | . . . Terminal Hacks 10 | . 10 . Record 1 | . 1 . Prototype ID Bank 1 | . 1 . Branch Access Points 1 | . 1 . Emergency Access Points 1 | . 1 . Alert Level 1 | . 1 . Unreport Threat 1 | . 1 . Locate Traps 1 | . 1 . Maintenance Status 1 | . 1 . Hauler Manifests 1 | . 1 . Zone Layout 1 | . 1 . Fabricator Hacks . | . . . Repair Station Hacks 3 | . 3 . Scan Component 2 | . 2 . Repair 1 | . 1 . Recycling Unit Hacks 1 | . 1 . Retrieve Components 1 | . 1 . Scanalyzer . | . . . Garrison Access Hacks . | . . . Unauthorized Hacks . | . . . Terminals . | . . . Fabricators . | . . . Repair Stations . | . . . Recycling Units . | . . . Scanalyzers . | . . . Garrison Access . | . . . Data Cores Recovered . | . . . Used . | . . . Hacking Detections 8 | . 8 . Full Trace Events 2 | . 2 . Feedback Events . | . . . Feedback Blocked . | . . . Robot Schematics Acquired . | . . . Robots Built . | . . . Authchips . | . . . Time . | . . . Total Robot Build Rating . | . . . Part Schematics Acquired . | . . . Parts Built . | . . . Authchips . | . . . Time . | . . . Total Part Build Rating . | . . . Part Studies Acquired . | . . . Parts Repaired 1 | . 1 . Time 26 | . 26 . Parts Recycled . | . . . Recycled Matter . | . . . Retrieved Matter . | . . . Retrieved Components 1 | . 1 . Parts Scanalyzed . | . . . Part Schematics Acquired . | . . . Parts Damaged . | . . . Bothacking | -11 -10 -10 ------------ Run | Yrd Mat Sub Used RIF Installer . | . . . Robots Hacked . | . . . Non-combat . | . . . Combat . | . . . Robot Hacks Applied . | . . . Relay Couplers Released . | . . . Fabnet Peak Effective % . | . . . Robots Rewired . | . . . Allies Hacked . | . . . Hacks Repelled . | . . . Allies | -11 -10 -10 -------- Run | Yrd Mat Sub Total Allies . | . . . Largest Group . | . . . Highest-Rated Group . | . . . Highest-Rated Ally . | . . . Total Orders . | . . . Ally Attacks . | . . . Total Damage . | . . . Kills . | . . . Allies Corrupted . | . . . Allies Melted . | . . . Intel | -11 -10 -10 ------- Run | Yrd Mat Sub Active Infowar (turns) 359 | 14 345 . Seismic 359 | 14 345 . Robot Analysis Total . | . . . Derelict Logs Recovered 1 | . . 1 Drone Launches . | . . . Drone Recoveries . | . . . Exploration | -11 -10 -10 ------------- Run | Yrd Mat Sub Turns Passed 3822 | 128 2218 1476 Spaces Moved 1422 | 47 804 571 Core 10 | 10 . . Treads 437 | 37 348 52 Legs . | . . . Wheels 975 | . 456 519 Hover . | . . . Flight . | . . . Fastest Speed 50 | 50 160 175 Average Speed 191 | 144 186 202 Slowest Speed 480 | 160 215 480 Overloaded Moves . | . . . Propulsion Burnouts . | . . . Robots Hopped . | . . . Potential Cave-ins 2 | . . 2 Cave-ins Triggered 1 | . . 1 Exploration Rate (%) 43 | 3 99 29 Regions Visited 2 Branch Regions 1 Pre-discovered Areas . | . . . Known Exits Taken . | . . . Unknown Exits Taken 2 | 1 1 . Scrap Searched 4 | . . 4 Spaces Dug 12 | . . 12 Terrain Destroyed 70 | . . 70 Melee 7 | . . 7 Projectile 8 | . . 8 AOE 55 | . . 55 Terrain Rammed . | . . . Walls Destroyed . | . . . Machines Disabled . | . . . Actions | -11 -10 -10 --------- Run | Yrd Mat Sub Total 2138 | 82 1322 734 Wait 412 | 11 369 32 Move 1420 | 46 803 571 Hop . | . . . Pick Up 31 | 5 20 6 Fast Attach 14 | 7 4 3 Attach 7 | . 3 4 Detach 1 | . . 1 Swap 24 | 1 13 10 Drop 14 | . 6 8 Fire 159 | 10 99 50 Melee 49 | . 1 48 Ram . | . . . Kick . | . . . Crush 6 | 2 4 . Escape Stasis . | . . . Rewire . | . . . Trap 1 | . . 1 Miscellaneous . | . . . Route ------- -11/Scrapyard -10/Materials (discovered 5 exits: [*Mat x3] / *Min / [*Sub]) -10/Subcaves (discovered 1 exit: [*Mat]) History --------- Turn | Location | Event 17 | -11/Scrapyard | Discovered new exit (range 15) 129 | -11/Scrapyard | Entered Materials 310 | -10/Materials | Build established: Mutant 429 | -10/Materials | Discovered new exit (range 10) 713 | -10/Materials | Discovered new exit (range 16) 713 | -10/Materials | Discovered new exit (range 12) 920 | -10/Materials | Repaired Lgt. Treads 1137 | -10/Materials | Discovered new exit (range 11) 1363 | -10/Materials | Identified exit to Mines 1721 | -10/Materials | Discovered new exit (range 9) 2347 | -10/Materials | Entered Subcaves 2350 | -10/Subcaves | Ambushed by Subdweller buried in earth 2703 | -10/Subcaves | Core integrity fell below 50% 2948 | -10/Subcaves | Shifting Twisted Machinery released Riot Gun 2949 | -10/Subcaves | Shifting Twisted Machinery released Flamer 3065 | -10/Subcaves | Discovered new exit (range 14) 3423 | -10/Subcaves | Crushed by falling debris 3423 | -10/Subcaves | Core integrity fell below 20% 3454 | -10/Subcaves | Lost 3 parts (1p2w) 3823 | -10/Subcaves | Destroyed by 3O-OYB(R) with Subdweller Laser Last Messages --------------- 03490_ W